Cogmind - Beta 17 *** ADVENTURER MODE // 2026.06.28 @ 10:31:44 Player: smokingfox Result: Destroyed by as-40448 with Assembled Blade Performance ------------- Evolutions (0) 0 Regions Visited (0) 0 Robots Destroyed (9) 45 Value Destroyed (38) 38 Prototype IDs (0) 0 Alien Tech Used (0) 0 Bonus (0) 0 TOTAL SCORE: 83 Bonus ------- None Cogmind --------- Core Integrity 0/250 Matter 300/300 Energy 99/100 System Corruption 0% Temperature Cool (0) Movement Core (100) Ox1 Location -11/Scrapyard Parts ------- > --- POWER (1) -------- (None) > --- PROPULSION (2) --- (None) > --- UTILITY (2) ------ Small Storage Unit Improved Terrain Scanner > --- WEAPON (2) ------- (None) > --- INVENTORY (8) ---- Ion Engine Wheel Wheel Wheel Wheel Medium Matter Pod (100) Light Assault Rifle Peak State ------------ > --- POWER ------------ Light Ion Engine > --- PROPULSION ------- Wheel Wheel > --- UTILITY ---------- Small Storage Unit Improved Terrain Scanner > --- WEAPON ----------- EM Pulse Gun EM Pulse Gun > --- INVENTORY -------- Ion Engine Wheel Wheel Wheel Medium Matter Pod Light Assault Rifle [Rating: 9] Favorites ----------- Power Light Ion Engine Engine Light Ion Engine Propulsion Wheel Wheel Wheel Utility Small Storage Unit Device Improved Terrain Scanner Storage Small Storage Unit Weapon EM Pulse Gun Energy Gun EM Pulse Gun Build | -11 ------- Run | Yrd Slots Evolved . | . Power . | . Propulsion . | . Utility . | . Weapon . | . Parts Attached 7 | 7 Power 1 | 1 Engine 1 | 1 Core . | . Reactor . | . Propulsion 2 | 2 Treads . | . Leg . | . Wheel 2 | 2 Hover . | . Flight . | . Utility 2 | 2 Device 1 | 1 Storage 1 | 1 Processor . | . Hackware . | . Protection . | . Artifact . | . Weapon 2 | 2 Energy Gun 2 | 2 Energy Cannon . | . Ballistic Gun . | . Ballistic Cannon . | . Launcher . | . Special Weapon . | . Impact Weapon . | . Slashing Weapon . | . Piercing Weapon . | . Special Melee Weapon . | . Unidentified Prototypes . | . Parts Lost 4 | 4 Power 1 | 1 Propulsion 1 | 1 Utility . | . Weapon 2 | 2 Highest Loss Streak 4 | 4 To Critical Strikes . | . Average Backups 6 | 6 Power 1 | 1 Propulsion 3 | 3 Utility . | . Weapon . | . Tool/Special . | . Unused Backups 7 | 7 Power 1 | 1 Propulsion 4 | 4 Utility 1 | 1 Weapon 1 | 1 Tool/Special . | . Average Slot Usage (%) . | . Peak Build Rating 9 | 9 Average Rating 8 | 8 On Entrance . | . Avg Prop Armor Cover (%) 11 | 11 Naked Turns . | . Heaviest Build 13 | 13 Greatest Support 20 | 20 Greatest Overweight (x) 4 | 4 Average Overweight (x) 2 | 2 Largest Inventory Capacity 8 | 8 Average Capacity 7 | 7 Most Carried 7 | 7 Average Carried 6 | 6 Final Capacity 8 | 8 Final Carried 7 | 7 Class Distribution -------------------- None Dominant Class ---------------- None Resources | -11 ----------- Run | Yrd Matter Collected 370 | 370 Remotely . | . Salvage Created 264 | 264 Parts 25 | 25 Haulers Intercepted . | . Recyclers Shooed . | . Parts Field Recycled . | . Retrieved Matter . | . Parts Self-Destructed . | . Prevented . | . Parts Restored . | . Kills | -11 ------- Run | Yrd Combat Hostiles Destroyed . | . Classes Destroyed 3 | 3 Worker 4 | 4 Tunneler 4 | 4 Recycler 1 | 1 Best Kill Streak 7 | 7 Combat Bots Only . | . Max Kills in Single Turn 2 | 2 Gunslinging . | . Exploded . | . Melee . | . Uniques/NPCs Destroyed . | . Combat | -11 -------- Run | Yrd Hostile Shots Fired 44 | 44 Missed 3 | 3 Hits 41 | 41 Melee 5 | 5 Projectile 36 | 36 Critical Strikes 1 | 1 Damage Taken 514 | 514 Core 268 | 268 Absorbed by Shields . | . Ignored by Resistances 147 | 147 Core Remaining (%) . | . Volleys Fired 14 | 14 Largest 2 | 2 Hottest 80 | 80 Shots Fired 28 | 28 Gun 28 | 28 Cannon . | . Launcher . | . Special . | . Kinetic . | . Thermal . | . Explosive . | . Electromagnetic 28 | 28 Robot Hit Streak 7 | 7 Robot Miss Streak 1 | 1 Penetration Max . | . Secondary Targets . | . Shots Hit Robots 20 | 20 Core Hits 10 | 10 Critical Kills . | . Critical Parts Destroyed . | . Critical Strikes . | . Melee Attacks . | . Impact . | . Slashing . | . Piercing . | . Sneak Attacks . | . Combat Hostiles . | . Follow-up Attacks . | . Damage Inflicted 377 | 377 Guns 269 | 269 Cannons . | . Explosions 108 | 108 Melee . | . Ramming . | . Kinetic . | . Thermal 108 | 108 Explosive . | . Electromagnetic 269 | 269 Impact . | . Slashing . | . Piercing . | . Highest Corruption . | . Average Corruption . | . Corruption Purged . | . Corruption Blocked . | . Overload Shots . | . Overflow Damage 11 | 11 Projectiles . | . Explosions 11 | 11 Melee . | . Knockbacks . | . Impact . | . Kinetic . | . Secondary . | . Self-Inflicted Damage 21 | 21 Shots 1 | 1 Rammed . | . Targets Rammed . | . Kicked . | . Crushed . | . Highest Temperature 38 | 38 Average Temperature 7 | 7 Received Heat Transfer 100 | 100 Siege Activations . | . Martial Activations . | . Shielding Activations . | . Robots Disrupted . | . Combat Hostiles . | . Robots Corrupted . | . Combat Hostiles . | . Parts Fried . | . Impact Corruptions . | . Robots Melted . | . Combat Hostiles . | . Parts Melted . | . Heat Transferred . | . Parts Sabotaged . | . Parts Stolen . | . Parts Stripped . | . Power Chain Reactions 2 | 2 Alert | -11 ------- Run | Yrd Maximum Alert Level . | . Low Security (%) 100 | 100 Level 1 . | . Level 2 . | . Level 3 . | . Level 4 . | . Level 5 . | . High Security . | . Max Security . | . Peak Influence 10 | 10 Initial . | . Average . | . Influence Increases 45 | 45 Destroy 0b10 Robot/NC 45 | 45 Influence Decreases 45 | 45 Time Decay 45 | 45 Squads Dispatched . | . Investigation . | . Extermination . | . Reinforcement . | . Assault . | . Garrison . | . Intercept . | . Searches Triggered . | . Construction Impeded . | . Haulers Reinforced . | . Active Scanning Responses . | . Cargo Convoy Interrupts . | . Stealth | -11 --------- Run | Yrd Distress Signals . | . Communications Jammed . | . Distress Signals . | . Times Spotted 10 | 10 Peak Tracking Total 15 | 15 Tactical Retreats . | . Traps | -11 ------- Run | Yrd Traps Triggered . | . Indirectly . | . Trap Hack Attempts . | . Triggered . | . Disarmed . | . Reprogrammed . | . Reused . | . Traps Extracted . | . Installed . | . Triggered . | . Machines | -11 ---------- Run | Yrd Machines Disabled . | . Max in Single Turn . | . Machines Repaired . | . Machines Dismantled . | . Machines Sabotaged . | . Overloaded Fab Kills . | . Hacking | -11 --------- Run | Yrd Machines Accessed . | . Terminals . | . Fabricators . | . Repair Stations . | . Recycling Units . | . Scanalyzers . | . Garrison Access . | . Total Hacks . | . Successful . | . Failed . | . Catastrophic . | . Database Lockouts . | . Manual . | . Terminals . | . Fabricators . | . Repair Stations . | . Recycling Units . | . Scanalyzers . | . Garrison Access . | . Terminal Hacks . | . Fabricator Hacks . | . Repair Station Hacks . | . Recycling Unit Hacks . | . Scanalyzer . | . Garrison Access Hacks . | . Unauthorized Hacks . | . Terminals . | . Fabricators . | . Repair Stations . | . Recycling Units . | . Scanalyzers . | . Garrison Access . | . Data Cores Recovered . | . Used . | . Hacking Detections . | . Full Trace Events . | . Feedback Events . | . Feedback Blocked . | . Robot Schematics Acquired . | . Robots Built . | . Authchips . | . Time . | . Total Robot Build Rating . | . Part Schematics Acquired . | . Parts Built . | . Authchips . | . Time . | . Total Part Build Rating . | . Part Studies Acquired . | . Parts Repaired . | . Time . | . Parts Recycled . | . Recycled Matter . | . Retrieved Matter . | . Retrieved Components . | . Parts Scanalyzed . | . Part Schematics Acquired . | . Parts Damaged . | . Bothacking | -11 ------------ Run | Yrd Used RIF Installer . | . Robots Hacked . | . Non-combat . | . Combat . | . Robot Hacks Applied . | . Relay Couplers Released . | . Fabnet Peak Effective % . | . Robots Rewired . | . Allies Hacked . | . Hacks Repelled . | . Allies | -11 -------- Run | Yrd Total Allies . | . Largest Group . | . Highest-Rated Group . | . Highest-Rated Ally . | . Total Orders . | . Ally Attacks . | . Total Damage . | . Kills . | . Allies Corrupted . | . Allies Melted . | . Intel | -11 ------- Run | Yrd Active Infowar (turns) 4861 | 4861 Terrain 4861 | 4861 Robot Analysis Total . | . Derelict Logs Recovered . | . Drone Launches . | . Drone Recoveries . | . Exploration | -11 ------------- Run | Yrd Turns Passed 5001 | 5001 Spaces Moved 2131 | 2131 Core 1433 | 1433 Treads . | . Legs . | . Wheels 698 | 698 Hover . | . Flight . | . Fastest Speed 50 | 50 Average Speed 193 | 193 Slowest Speed 250 | 250 Overloaded Moves . | . Propulsion Burnouts . | . Robots Hopped . | . Potential Cave-ins . | . Cave-ins Triggered . | . Exploration Rate (%) 60 | 60 Regions Visited . Branch Regions . Pre-discovered Areas . | . Known Exits Taken . | . Unknown Exits Taken . | . Scrap Searched . | . Spaces Dug . | . Terrain Destroyed 13 | 13 Melee . | . Projectile . | . AOE 13 | 13 Terrain Rammed . | . Walls Destroyed . | . Machines Disabled . | . Actions | -11 --------- Run | Yrd Total 2979 | 2979 Wait 813 | 813 Move 2131 | 2131 Hop . | . Pick Up 14 | 14 Fast Attach . | . Attach 7 | 7 Detach . | . Swap . | . Drop . | . Fire 14 | 14 Melee . | . Ram . | . Kick . | . Crush . | . Escape Stasis . | . Rewire . | . Trap . | . Miscellaneous . | . Route ------- -11/Scrapyard (discovered 1 exit: [*Mat]) History --------- Turn | Location | Event 24 | -11/Scrapyard | Discovered new exit (range 15) 4970 | -11/Scrapyard | Assembled infested the area 4993 | -11/Scrapyard | Core integrity fell below 50% 5000 | -11/Scrapyard | Core integrity fell below 20% 5002 | -11/Scrapyard | Destroyed by as-40448 with Assembled Blade Last Messages --------------- Acquired 10 matter. T-07 Excavator is excavating. K-01 Serf collects debris. T-07 Excavator is excavating. K-01 Serf collects debris. T-07 Excavator is excavating. K-01 Serf collects debris. T-07 Excavator is excavating. K-01 Serf collects debris. Chain reaction triggered in Lgt. Ion Engine. K-01 Serf destroyed. T-07 Excavator is excavating. ALERT: Infestation in the scrapyard, dispatching Demolisher response squad. [Achievement: Curiosity Killed The Cat] T-07 Excavator destroyed. Wheel destroyed. EM Pulse Gun destroyed. Lgt. Ion Engine destroyed. Wheel severed. Map ----- +----------------------------------------------------+ | | | | | | | ##??????????????????????????????????????????????? | | #???#?#??#?????????????????????????????????????? | | #?????????????????????????????#?#??????????????? | | ##???????????????????????????#?????????????????? | | #????????????????????#?????????#?????##????????? | | #??#???#??????????????????????#???#??#??#??????? | | #??????#??#?????????#?###????????#?????????????? | | #?????#????????????????????# ?? ?"??????##?????? | | #?????????????????????#?##?#? ?? #?#????##??? | | ##??#??????????????????????#? ??? ? ?????#??????? | | ##?#?#???#??????##???#??###?# ? ??##?#?##????? | | #??????????????#???#?#####?# "? ? ??####??#??? | | ###????#????????#????#????##?? ??##????###???? | | #???##??????????????#######?# ##????#?#???#?? | | #?#?#?????????#???#??#??#?#?#?########??#????? | | #????#??#???????#?#?????????#% #?#???###??##?? | | #?#?#?##?????####?###########a ##???##?##?##?? | | #?#????##???##????# aaa #???#?##?????? | | #????????????#????# = a # ####?######?#?? | | #?#?#?????????##??# aa# ##?##?####?#??? | | #?????#?????????#?# a # #####??####?##? | | #?#?#???????????#?# a a # ###?##?#????#?# | | ######??????????###?## @ # #########??##?? | | #?????????#?###??# # # #####??? | | #?##?#?#?????#?### # ##?#?#?# | | #?#???#???????############## # ####?### | | ##?????##????#?###?###?#?### # #????#?? | | #???????##??####?##??##?#?## ##??##?# | | ###??#????#??##??#???#####??# # #?#???#? | | ############????#??#?###?#??#??# ###########?#?? | | ## ##?#?################ # ##??? | | ## #?#### ###### #???? | | ## #????# ###?## # #?#?? | | ?# ###?## ####?# # #?#?# | | ## ##??## #?#??# # #?##? | | ## ##???# ###### # #???? | | ## ##???# #?##?# # #???? | | ?# ###### ####?# ## ###?? | | ###### ########?# ###### ###########?#?? | | ############ # ########## #??#?????##???? | | #?##?#?#??????? | | ##### ##?###?#??????# | | ##?## ############################?#?#??#?????#? | | ##### #??#?## ##??############???#??? | | #??## |####### ###?## #??#??????# | | ?####! #####?# #??#?# #####?????# | | ?# ! #??# ###??# #?#?????#?? | +----------------------------------------------------+ Best States ------------- Heat Dissipation 25 Energy Generation 10 Energy Capacity 125 Matter Stores 300 Matter Capacity 300 Sight Range 16 Terrain Scan Range 16 Terrain Scan Density 10 Resistance: KI 20 Resistance: TH 20 Resistance: EX 20 Resistance: EM 20 Resistance: I 20 Resistance: S 20 Resistance: P 20 Evasion (%) 44 Offensive Hacking 10 Item Schematics ----------------- None Robot Schematics ------------------ None Fabricated ------------ Nothing Repaired ---------- Nothing Studied --------- None Alien Tech Used ----------------- None Achievements -------------- Curiosity Killed The Cat Challenges ------------ None Game ------ Seed JunkVoltaicCore Manual? 0 Play Time 00:17:26 Cumulative 38.1 hours Start 2026.06.28 @ 10:15:14 End 2026.06.28 @ 10:31:44 Sessions 0 Manual Loads 0 Difficulty Adventurer Special Mode None Game No. 52 Rogue 7 Adventurer 45 Explorer 0 Win Type - Total 0 Types 0/0/0/0/0/0/0/0/0/0 Lore% 48 Gallery% 31 Achievement% 27 Wizard Run 0 Options --------- Layout 1 ASCII 0 Keyboard 0 Movement Mouse Keybinds 0 Fullscreen 1 Font 48/Smallcaps Map View 50x35 Zoom Use 0% Tactical HUD 0 Map Filters NONE Filters NONE Steam 1 RUN: b635a7ee-3d15-4ad5-816a-27253ccf93ae